[Event "Turniej 30-lecia Liceum im. Józefa Bema"]
[Site "Warsaw, Poland"]
[Date "????.??.??"]
[Round "6.10"]
[White "Pancewicz, Szymon"]
[Black "Basiaga, Sebastian"]
[Result "1/2-1/2"]
[TimeControl "0:10:02"]
[WhiteElo "1477"]
[BlackElo "1771"]

1. e4 {[%clk 00:10:02]} {[%emt 00:00:02]} e5 {[%clk 00:10:03]} {[%emt
00:00:01]} 2. Nf3 {[%clk 00:10:02]} {[%emt 00:00:02]} Nc6 {[%clk 00:10:04]} 3.
Bb5 {[%clk 00:10:00]} {[%emt 00:00:04]} a6 {[%clk 00:10:04]} {[%emt 00:00:02]}
4. Ba4 {[%clk 00:10:01]} {[%emt 00:00:01]} Nf6 {[%clk 00:10:05]} {[%emt
00:00:01]} 5. O-O {[%clk 00:09:44]} {[%emt 00:00:19]} b5 {[%clk 00:10:06]}
{[%emt 00:00:02]} 6. Bb3 {[%clk 00:09:44]} {[%emt 00:00:02]} Bc5 {[%clk
00:10:06]} 7. Re1 {[%clk 00:09:20]} {[%emt 00:00:28]} d6 {[%clk 00:10:06]}
{[%emt 00:00:02]} 8. c3 {[%clk 00:09:17]} {[%emt 00:00:05]} h6 {[%clk
00:09:47]} {[%emt 00:00:21]} 9. d4 {[%clk 00:08:45]} {[%emt 00:00:34]} Bb6
{[%clk 00:09:48]} {[%emt 00:00:01]} 10. d5 {[%clk 00:08:08]} {[%emt 00:00:39]}
Ne7 {[%clk 00:09:47]} {[%emt 00:00:02]} 11. a4 {[%clk 00:07:58]} {[%emt
00:00:13]} Bb7 {[%clk 00:09:38]} {[%emt 00:00:10]} 12. Nbd2 {[%clk 00:07:35]}
{[%emt 00:00:25]} c6 {[%clk 00:09:38]} {[%emt 00:00:02]} 13. dxc6 {[%clk
00:06:42]} {[%emt 00:00:56]} Bxc6 {[%clk 00:09:35]} {[%emt 00:00:05]} 14. Qc2
{[%clk 00:05:52]} {[%emt 00:00:52]} O-O {[%clk 00:09:02]} {[%emt 00:00:34]} 15.
Nf1 {[%clk 00:05:50]} {[%emt 00:00:05]} Rc8 {[%clk 00:08:12]} {[%emt 00:00:52]}
16. Ng3 {[%clk 00:05:01]} {[%emt 00:00:51]} Qc7 {[%clk 00:07:06]} {[%emt
00:01:07]} 17. Be3 {[%clk 00:03:43]} {[%emt 00:01:20]} Bxe3 {[%clk 00:06:29]}
{[%emt 00:00:40]} 18. Rxe3 {[%clk 00:03:41]} {[%emt 00:00:04]} Qb6 {[%clk
00:05:42]} {[%emt 00:00:49]} 19. a5 {[%clk 00:03:12]} {[%emt 00:00:31]} Qc7
{[%clk 00:05:37]} {[%emt 00:00:07]} 20. Rd1 {[%clk 00:02:37]} {[%emt 00:00:36]}
Rcd8 {[%clk 00:05:15]} {[%emt 00:00:24]} 21. Ra1 {[%clk 00:01:43]} {[%emt
00:00:57]} Rfe8 {[%clk 00:05:03]} {[%emt 00:00:14]} 22. Qe2 {[%clk 00:01:14]}
{[%emt 00:00:30]} Ng6 {[%clk 00:04:06]} {[%emt 00:00:59]} 23. h3 {[%clk
00:00:41]} {[%emt 00:00:36]} d5 {[%clk 00:03:40]} {[%emt 00:00:29]} 24. exd5
{[%clk 00:00:14]} {[%emt 00:00:29]} Nxd5 {[%clk 00:03:40]} {[%emt 00:00:01]} 25.
Bxd5 {[%clk 00:00:15]} Bxd5 {[%clk 00:03:41]} {[%emt 00:00:01]} 26. Qe1 {[%clk
00:00:08]} {[%emt 00:00:09]} f6 {[%clk 00:03:19]} {[%emt 00:00:23]} 27. Rd1
{[%clk 00:00:08]} {[%emt 00:00:02]} Bxf3 {[%clk 00:02:46]} {[%emt 00:00:35]} 28.
Rxf3 {[%clk 00:00:04]} {[%emt 00:00:06]} Qxa5 {[%clk 00:02:43]} {[%emt
00:00:05]} 29. Rxd8 {[%clk 00:00:05]} Rxd8 {[%clk 00:02:42]} {[%emt 00:00:02]}
30. Nf5 {[%clk 00:00:06]} Rd7 {[%clk 00:02:03]} {[%emt 00:00:42]} 31. Kh2
{[%clk 00:00:08]} Qc7 {[%clk 00:01:59]} {[%emt 00:00:06]} 32. Qe4 {[%clk
00:00:09]} Nf4 {[%clk 00:01:55]} {[%emt 00:00:07]} 33. g3 {[%clk 00:00:10]}
{[%emt 00:00:02]} Ne6 {[%clk 00:01:44]} {[%emt 00:00:12]} 34. Rd3 {[%clk
00:00:09]} {[%emt 00:00:03]} Kf7 {[%clk 00:01:07]} {[%emt 00:00:39]} 35. Rxd7+
{[%clk 00:00:07]} {[%emt 00:00:04]} Qxd7 {[%clk 00:01:08]} 36. Qa8 {[%clk
00:00:08]} Qd2 {[%clk 00:00:52]} {[%emt 00:00:18]} 37. Qf3 {[%clk 00:00:05]}
{[%emt 00:00:05]} Ng5 {[%clk 00:00:47]} {[%emt 00:00:07]} 38. Qb7+ {[%clk
00:00:06]} {[%emt 00:00:01]} Kg6 {[%clk 00:00:41]} {[%emt 00:00:09]} 39. Ne7+
{[%clk 00:00:07]} Kh7 {[%clk 00:00:40]} {[%emt 00:00:02]} 40. Kg2 {[%clk
00:00:07]} {[%emt 00:00:02]} Qd3 {[%clk 00:00:12]} {[%emt 00:00:30]} 41. Qxa6
{[%clk 00:00:05]} {[%emt 00:00:05]} Qe4+ {[%clk 00:00:12]} {[%emt 00:00:01]} 42.
Kf1 {[%clk 00:00:05]} {[%emt 00:00:01]} Qd3+ {[%clk 00:00:10]} {[%emt
00:00:04]} 43. Kg2 {[%clk 00:00:06]} Ne4 {[%clk 00:00:10]} {[%emt 00:00:02]} 44.
Qe6 {[%clk 00:00:04]} {[%emt 00:00:04]} Nd2 {[%clk 00:00:10]} {[%emt 00:00:03]}
45. Qf5+ {[%clk 00:00:04]} {[%emt 00:00:02]} Qxf5 {[%clk 00:00:10]} 46. Nxf5
{[%clk 00:00:05]} Nc4 {[%clk 00:00:12]} 47. Ne3 {[%clk 00:00:06]} {[%emt
00:00:02]} Nxb2 {[%clk 00:00:13]} {[%emt 00:00:02]} 48. Nd5 {[%clk 00:00:07]}
Na4 {[%clk 00:00:07]} {[%emt 00:00:08]} 49. Kf3 {[%clk 00:00:08]} Kg6 {[%clk
00:00:08]} 50. Ke4 {[%clk 00:00:09]} {[%emt 00:00:01]} Kf7 {[%clk 00:00:08]}
{[%emt 00:00:02]} 51. Kd3 {[%clk 00:00:09]} {[%emt 00:00:02]} Ke6 {[%clk
00:00:09]} {[%emt 00:00:02]} 52. Nc7+ {[%clk 00:00:11]} Kf5 {[%clk 00:00:09]}
{[%emt 00:00:02]} 53. Nxb5 {[%clk 00:00:11]} Nc5+ {[%clk 00:00:08]} {[%emt
00:00:03]} 54. Ke3 {[%clk 00:00:12]} {[%emt 00:00:02]} Ke6 {[%clk 00:00:08]}
{[%emt 00:00:02]} 55. Nc7+ {[%clk 00:00:13]} {[%emt 00:00:01]} Ke7 {[%clk
00:00:08]} {[%emt 00:00:02]} 56. Nd5+ {[%clk 00:00:14]} Ke6 {[%clk 00:00:10]}
57. Nc7+ {[%clk 00:00:15]} {[%emt 00:00:01]} Kf7 {[%clk 00:00:11]} 58. Nb5
{[%clk 00:00:14]} {[%emt 00:00:04]} f5 {[%clk 00:00:11]} {[%emt 00:00:01]} 59.
Nd6+ {[%emt 00:00:03]} Ke6 {[%clk 00:00:10]} {[%emt 00:00:01]} 60. Nc4 {[%clk
00:00:14]} {[%emt 00:00:03]} g5 {[%clk 00:00:09]} {[%emt 00:00:03]} 61. h4
{[%clk 00:00:08]} {[%emt 00:00:08]} f4+ {[%clk 00:00:07]} {[%emt 00:00:03]} 62.
Ke2 {[%clk 00:00:06]} {[%emt 00:00:04]} e4 {[%clk 00:00:07]} {[%emt 00:00:02]}
63. Nd2 {[%clk 00:00:08]} {[%emt 00:00:01]} Kf5 {[%clk 00:00:05]} {[%emt
00:00:03]} 64. hxg5 {[%clk 00:00:08]} hxg5 {[%clk 00:00:07]} {[%emt 00:00:01]}
65. gxf4 {[%clk 00:00:09]} gxf4 {[%clk 00:00:08]} 66. c4 {[%clk 00:00:09]}
{[%emt 00:00:03]} Ke5 {[%clk 00:00:08]} {[%emt 00:00:01]} 67. f3 {[%clk
00:00:08]} {[%emt 00:00:03]} e3 {[%clk 00:00:09]} 68. Nf1 {[%clk 00:00:08]}
{[%emt 00:00:02]} Kd4 {[%clk 00:00:09]} {[%emt 00:00:02]} 69. Nh2 {[%clk
00:00:05]} {[%emt 00:00:06]} Kxc4 {[%clk 00:00:10]} {[%emt 00:00:01]} 70. Ng4
{[%clk 00:00:06]} Ne6 {[%clk 00:00:10]} {[%emt 00:00:03]} 71. Nf6 {[%clk
00:00:06]} {[%emt 00:00:01]} Kd4 {[%clk 00:00:11]} {[%emt 00:00:01]} 72. Nh5
{[%clk 00:00:08]} Ke5 {[%clk 00:00:11]} {[%emt 00:00:03]} 73. Ng7 {[%clk
00:00:08]} Nc5 {[%clk 00:00:05]} {[%emt 00:01:19]} 74. Ne8 {[%clk 00:02:00]}
Nb3 {[%clk 00:00:05]} {[%emt 00:00:08]} 75. Nc7 {[%clk 00:01:46]} Nd4+ {[%clk
00:00:05]} {[%emt 00:00:17]} 76. Kf1 {[%clk 00:01:46]} e2+ {[%clk 00:00:05]}
{[%emt 00:00:06]} 77. Kf2 {[%clk 00:01:47]} Nxf3 {[%clk 00:00:06]} {[%emt
00:00:02]} 78. Kxe2 {[%clk 00:01:47]} {[%emt 00:00:02]} Nd4+ {[%clk 00:00:05]}
{[%emt 00:00:02]} 79. Kf2 {[%clk 00:01:48]} Ke4 {[%clk 00:00:04]} {[%emt
00:00:03]} 80. Na6 {[%clk 00:01:42]} {[%emt 00:00:08]} f3 {[%clk 00:00:03]}
{[%emt 00:00:02]} 81. Nc5+ {[%clk 00:01:43]} {[%emt 00:00:02]} Kf4 {[%clk
00:00:04]} 82. Nd3+ {[%clk 00:01:43]} {[%emt 00:00:01]} Ke4 {[%clk 00:00:05]}
{[%emt 00:00:01]} 83. Ne1 {[%clk 00:01:44]} Kf4 {[%clk 00:00:05]} {[%emt
00:00:02]} 84. Nxf3 {[%clk 00:01:45]} {[%emt 00:00:02]} Nxf3 {[%clk 00:00:05]}
{[%emt 00:00:02]} 1/2-1/2

[Event "Turniej 30-lecia Liceum im. Józefa Bema"]
[Site "Warsaw, Poland"]
[Date "????.??.??"]
[Round "7.2"]
[White "Adamski, Jan"]
[Black "Maciaga, Marcin"]
[Result "1/2-1/2"]
[TimeControl "0:10:02"]
[WhiteElo "2127"]
[BlackElo "2159"]

1. Nf3 {[%clk 00:10:02]} Nf6 {[%clk 00:10:03]} {[%emt 00:00:03]} 2. c4 {[%clk
00:10:02]} {[%emt 00:00:02]} g6 {[%clk 00:09:45]} {[%emt 00:00:20]} 3. Nc3
{[%clk 00:10:02]} {[%emt 00:00:01]} c5 {[%clk 00:09:21]} {[%emt 00:00:26]} 4.
e4 {[%clk 00:09:54]} {[%emt 00:00:10]} d6 {[%clk 00:08:56]} {[%emt 00:00:27]} 5.
d4 {[%clk 00:09:53]} {[%emt 00:00:02]} cxd4 {[%clk 00:08:56]} {[%emt 00:00:02]}
6. Nxd4 {[%clk 00:09:53]} {[%emt 00:00:03]} Nc6 {[%clk 00:08:48]} {[%emt
00:00:09]} 7. f3 {[%clk 00:09:46]} {[%emt 00:00:09]} Nxd4 {[%clk 00:08:44]}
{[%emt 00:00:06]} 8. Qxd4 {[%clk 00:09:47]} {[%emt 00:00:01]} Bg7 {[%clk
00:08:43]} {[%emt 00:00:03]} 9. Be3 {[%clk 00:09:47]} {[%emt 00:00:02]} O-O
{[%clk 00:08:41]} {[%emt 00:00:03]} 10. Qd2 {[%clk 00:09:48]} {[%emt 00:00:01]}
Be6 {[%clk 00:08:36]} {[%emt 00:00:08]} 11. Rc1 {[%clk 00:09:19]} {[%emt
00:00:31]} Qa5 {[%clk 00:08:22]} {[%emt 00:00:16]} 12. b3 {[%clk 00:08:04]}
{[%emt 00:01:16]} Rfc8 {[%clk 00:08:14]} {[%emt 00:00:10]} 13. Be2 {[%clk
00:07:44]} {[%emt 00:00:22]} a6 {[%clk 00:08:12]} {[%emt 00:00:04]} 14. Nd5
{[%clk 00:05:42]} {[%emt 00:02:04]} Qxd2+ {[%clk 00:07:51]} {[%emt 00:00:24]}
15. Kxd2 {[%clk 00:05:41]} {[%emt 00:00:02]} Nxd5 {[%clk 00:07:28]} {[%emt
00:00:24]} 16. cxd5 {[%clk 00:05:41]} {[%emt 00:00:02]} Bd7 {[%clk 00:07:28]}
{[%emt 00:00:02]} 17. Rxc8+ {[%clk 00:05:05]} {[%emt 00:00:38]} Rxc8 {[%clk
00:07:28]} {[%emt 00:00:02]} 18. Rc1 {[%clk 00:05:05]} {[%emt 00:00:02]} Rxc1
{[%clk 00:07:12]} {[%emt 00:00:18]} 19. Kxc1 {[%clk 00:05:06]} {[%emt
00:00:01]} Bc3 {[%clk 00:06:38]} {[%emt 00:00:37]} 20. a3 {[%clk 00:04:52]}
{[%emt 00:00:15]} f6 {[%clk 00:06:03]} {[%emt 00:00:37]} 21. Kc2 {[%clk
00:04:52]} {[%emt 00:00:02]} Ba5 {[%clk 00:06:01]} {[%emt 00:00:03]} 22. Bc4
{[%clk 00:04:10]} {[%emt 00:00:45]} Kf8 {[%clk 00:05:56]} {[%emt 00:00:08]} 23.
b4 {[%clk 00:04:09]} {[%emt 00:00:03]} Bc7 {[%clk 00:05:53]} {[%emt 00:00:04]}
24. Kb3 {[%clk 00:04:05]} {[%emt 00:00:06]} b5 {[%clk 00:05:10]} {[%emt
00:00:45]} 25. Bd3 {[%clk 00:04:02]} {[%emt 00:00:05]} Kf7 {[%clk 00:04:43]}
{[%emt 00:00:30]} 26. Kc3 {[%clk 00:03:53]} {[%emt 00:00:11]} Ke8 {[%clk
00:04:22]} {[%emt 00:00:23]} 27. Bc2 {[%clk 00:03:41]} {[%emt 00:00:14]} Kd8
{[%clk 00:04:15]} {[%emt 00:00:09]} 28. Bd3 {[%clk 00:03:29]} {[%emt 00:00:14]}
Kc8 {[%emt 00:00:22]} 1/2-1/2

[Event "Turniej 30-lecia Liceum im. Józefa Bema"]
[Site "Warsaw, Poland"]
[Date "????.??.??"]
[Round "7.3"]
[White "Nurkiewicz, Maciej"]
[Black "Kedzierski, Slawomir"]
[Result "1/2-1/2"]
[TimeControl "0:10:02"]
[WhiteElo "2301"]
[BlackElo "2061"]

1. d4 {[%clk 00:10:03]} Nf6 {[%clk 00:10:03]} {[%emt 00:00:01]} 2. c4 {[%clk
00:10:04]} {[%emt 00:00:01]} e6 {[%clk 00:10:04]} 3. Nf3 {[%clk 00:10:05]}
{[%emt 00:00:01]} d5 {[%clk 00:10:04]} {[%emt 00:00:01]} 4. Nc3 {[%clk
00:10:04]} {[%emt 00:00:03]} Be7 {[%clk 00:10:02]} {[%emt 00:00:04]} 5. Bf4
{[%clk 00:09:48]} {[%emt 00:00:17]} O-O {[%clk 00:09:46]} {[%emt 00:00:18]} 6.
e3 {[%clk 00:09:49]} {[%emt 00:00:02]} c6 {[%clk 00:09:26]} {[%emt 00:00:23]} 7.
h3 {[%clk 00:09:15]} {[%emt 00:00:35]} Nbd7 {[%clk 00:09:22]} {[%emt 00:00:05]}
8. c5 {[%clk 00:09:13]} {[%emt 00:00:04]} b6 {[%clk 00:08:38]} {[%emt
00:00:47]} 9. b4 {[%clk 00:09:14]} {[%emt 00:00:01]} bxc5 {[%clk 00:08:37]}
{[%emt 00:00:02]} 10. bxc5 {[%clk 00:08:59]} {[%emt 00:00:18]} Qa5 {[%clk
00:08:29]} {[%emt 00:00:09]} 11. Qd2 {[%clk 00:08:52]} {[%emt 00:00:10]} Ba6
{[%clk 00:08:19]} {[%emt 00:00:12]} 12. Rb1 {[%clk 00:08:22]} {[%emt 00:00:32]}
Bd8 {[%clk 00:07:32]} {[%emt 00:00:50]} 13. Bd6 {[%clk 00:07:25]} {[%emt
00:00:58]} Re8 {[%clk 00:07:28]} {[%emt 00:00:06]} 14. Bd3 {[%clk 00:07:15]}
{[%emt 00:00:12]} Bxd3 {[%clk 00:07:03]} {[%emt 00:00:27]} 15. Qxd3 {[%clk
00:07:06]} {[%emt 00:00:11]} Ne4 {[%clk 00:06:46]} {[%emt 00:00:19]} 16. Rb3
{[%clk 00:06:50]} {[%emt 00:00:17]} Nxd6 {[%clk 00:06:30]} {[%emt 00:00:19]} 17.
cxd6 {[%clk 00:06:50]} {[%emt 00:00:01]} c5 {[%clk 00:05:51]} {[%emt 00:00:41]}
18. Qb5 {[%clk 00:05:33]} {[%emt 00:01:19]} Qxb5 {[%clk 00:05:21]} {[%emt
00:00:33]} 19. Rxb5 {[%clk 00:05:32]} {[%emt 00:00:03]} Bb6 {[%clk 00:04:59]}
{[%emt 00:00:23]} 20. Ke2 {[%clk 00:05:13]} {[%emt 00:00:22]} cxd4 {[%clk
00:04:23]} {[%emt 00:00:38]} 21. exd4 {[%clk 00:05:13]} {[%emt 00:00:02]} Rec8
{[%clk 00:04:15]} {[%emt 00:00:09]} 22. Kd3 {[%clk 00:04:39]} {[%emt 00:00:36]}
Rc6 {[%clk 00:04:03]} {[%emt 00:00:14]} 23. a4 {[%clk 00:04:24]} {[%emt
00:00:18]} Rxd6 {[%clk 00:03:46]} {[%emt 00:00:19]} 24. a5 {[%clk 00:04:24]}
{[%emt 00:00:02]} a6 {[%clk 00:03:40]} {[%emt 00:00:08]} 25. Rxb6 {[%clk
00:04:19]} {[%emt 00:00:07]} Nxb6 {[%clk 00:03:40]} {[%emt 00:00:02]} 26. axb6
{[%clk 00:04:20]} {[%emt 00:00:01]} Rxb6 {[%clk 00:03:41]} {[%emt 00:00:01]} 27.
Nd2 {[%clk 00:04:08]} {[%emt 00:00:14]} f6 {[%clk 00:03:34]} {[%emt 00:00:09]}
28. Na4 {[%clk 00:03:46]} {[%emt 00:00:23]} Rb4 {[%clk 00:03:06]} {[%emt
00:00:30]} 29. Nc5 {[%clk 00:03:07]} {[%emt 00:00:42]} e5 {[%clk 00:02:37]}
{[%emt 00:00:30]} 30. dxe5 {[%clk 00:03:07]} {[%emt 00:00:02]} fxe5 {[%clk
00:02:38]} 31. f3 {[%clk 00:03:08]} a5 {[%clk 00:02:05]} {[%emt 00:00:35]} 32.
Re1 {[%clk 00:03:05]} {[%emt 00:00:05]} Rd4+ {[%clk 00:01:43]} {[%emt
00:00:24]} 33. Ke3 {[%clk 00:02:52]} {[%emt 00:00:14]} Rc8 {[%clk 00:01:36]}
{[%emt 00:00:08]} 34. Ncb3 {[%clk 00:01:50]} {[%emt 00:01:06]} Rc3+ {[%clk
00:01:34]} {[%emt 00:00:03]} 35. Ke2 {[%clk 00:01:50]} {[%emt 00:00:02]} Ra4
{[%clk 00:01:27]} {[%emt 00:00:07]} 36. Kd1 {[%clk 00:01:37]} {[%emt 00:00:16]}
Ra3 {[%clk 00:01:16]} {[%emt 00:00:14]} 37. Rxe5 {[%clk 00:01:28]} {[%emt
00:00:11]} Raxb3 {[%clk 00:01:14]} {[%emt 00:00:04]} 38. Nxb3 {[%clk 00:01:28]}
{[%emt 00:00:02]} Rxb3 {[%clk 00:01:16]} 39. Rxd5 {[%clk 00:01:29]} a4 {[%clk
00:00:55]} {[%emt 00:00:22]} 40. Ra5 {[%clk 00:01:30]} {[%emt 00:00:02]} a3
{[%clk 00:00:45]} {[%emt 00:00:12]} 41. Ra7 {[%clk 00:01:29]} {[%emt 00:00:03]}
h6 {[%clk 00:00:42]} {[%emt 00:00:05]} 42. h4 {[%clk 00:01:24]} {[%emt
00:00:07]} Rb2 {[%clk 00:00:37]} {[%emt 00:00:07]} 43. Rxa3 {[%clk 00:01:22]}
{[%emt 00:00:05]} Rxg2 {[%clk 00:00:38]} {[%emt 00:00:01]} 44. Ke1 {[%clk
00:01:20]} {[%emt 00:00:04]} Kf7 {[%clk 00:00:36]} {[%emt 00:00:04]} 45. Ra4
{[%clk 00:01:09]} {[%emt 00:00:13]} Kf6 {[%clk 00:00:33]} {[%emt 00:00:05]} 46.
Kf1 {[%clk 00:01:07]} {[%emt 00:00:04]} Rd2 {[%clk 00:00:30]} {[%emt 00:00:04]}
47. Rg4 {[%clk 00:01:06]} {[%emt 00:00:03]} g6 {[%clk 00:00:29]} {[%emt
00:00:03]} 48. Re4 {[%clk 00:00:57]} {[%emt 00:00:11]} Kf5 {[%clk 00:00:28]}
{[%emt 00:00:03]} 49. Rg4 {[%clk 00:00:56]} {[%emt 00:00:03]} Ra2 {[%clk
00:00:26]} {[%emt 00:00:04]} 50. Re4 {[%clk 00:00:55]} {[%emt 00:00:02]} Rh2
{[%clk 00:00:19]} {[%emt 00:00:10]} 51. Kg1 {[%clk 00:00:56]} {[%emt 00:00:02]}
Rd2 {[%clk 00:00:19]} {[%emt 00:00:01]} 52. Kf1 {[%clk 00:00:56]} {[%emt
00:00:02]} h5 {[%clk 00:00:13]} {[%emt 00:00:08]} 53. Kg1 {[%clk 00:00:57]}
{[%emt 00:00:01]} Rb2 {[%clk 00:00:11]} {[%emt 00:00:04]} 54. Rc4 {[%clk
00:00:57]} {[%emt 00:00:02]} 1/2-1/2

[Event "Turniej 30-lecia Liceum im. Józefa Bema"]
[Site "Warsaw, Poland"]
[Date "????.??.??"]
[Round "7.4"]
[White "Praczukowski, Stanislaw"]
[Black "Bielinski, Leszek"]
[Result "1-0"]
[TimeControl "0:10:02"]
[WhiteElo "2113"]
[BlackElo "1854"]

1. d4 {[%clk 00:10:03]} Nf6 {[%clk 00:10:03]} {[%emt 00:00:01]} 2. c4 {[%clk
00:10:04]} e6 {[%clk 00:10:04]} {[%emt 00:00:03]} 3. Nf3 {[%clk 00:10:05]}
{[%emt 00:00:01]} d5 {[%clk 00:10:05]} {[%emt 00:00:01]} 4. g3 {[%clk
00:10:06]} dxc4 {[%clk 00:10:05]} {[%emt 00:00:02]} 5. Bg2 {[%clk 00:10:07]}
Be7 {[%clk 00:10:03]} {[%emt 00:00:04]} 6. O-O {[%clk 00:10:07]} {[%emt
00:00:02]} O-O {[%clk 00:10:04]} {[%emt 00:00:02]} 7. Ne5 {[%clk 00:09:59]}
{[%emt 00:00:10]} c5 {[%clk 00:09:47]} {[%emt 00:00:19]} 8. dxc5 {[%clk
00:09:50]} {[%emt 00:00:11]} Qxd1 {[%clk 00:09:32]} {[%emt 00:00:16]} 9. Rxd1
{[%clk 00:09:51]} {[%emt 00:00:01]} Bxc5 {[%clk 00:09:32]} {[%emt 00:00:02]} 10.
Nxc4 {[%clk 00:09:47]} {[%emt 00:00:07]} Nc6 {[%clk 00:09:19]} {[%emt
00:00:16]} 11. Nc3 {[%clk 00:09:35]} {[%emt 00:00:13]} Bd7 {[%clk 00:08:47]}
{[%emt 00:00:33]} 12. Bg5 {[%clk 00:09:26]} {[%emt 00:00:12]} Rfd8 {[%clk
00:08:25]} {[%emt 00:00:24]} 13. Nd6 {[%clk 00:07:00]} {[%emt 00:02:27]} Bxd6
{[%clk 00:06:57]} {[%emt 00:01:29]} 14. Rxd6 {[%clk 00:07:01]} {[%emt
00:00:01]} Ne8 {[%clk 00:06:40]} {[%emt 00:00:20]} 15. Rd2 {[%clk 00:06:15]}
{[%emt 00:00:48]} f6 {[%clk 00:06:41]} {[%emt 00:00:02]} 16. Rad1 {[%clk
00:06:09]} {[%emt 00:00:07]} fxg5 {[%clk 00:06:07]} {[%emt 00:00:36]} 17. Rxd7
{[%clk 00:06:09]} {[%emt 00:00:02]} Nf6 {[%clk 00:05:12]} {[%emt 00:00:56]} 18.
Rxb7 {[%clk 00:04:04]} {[%emt 00:02:08]} Rxd1+ {[%clk 00:04:58]} {[%emt
00:00:15]} 19. Nxd1 {[%clk 00:04:04]} {[%emt 00:00:01]} Nd5 {[%clk 00:04:44]}
{[%emt 00:00:15]} 20. a3 {[%clk 00:03:31]} {[%emt 00:00:37]} Rb8 {[%clk
00:04:39]} {[%emt 00:00:07]} 21. Rxb8+ {[%clk 00:03:24]} {[%emt 00:00:08]} Nxb8
{[%clk 00:04:39]} {[%emt 00:00:02]} 22. e3 {[%clk 00:02:21]} {[%emt 00:01:05]}
Kf7 {[%clk 00:04:38]} {[%emt 00:00:02]} 23. Kf1 {[%clk 00:02:20]} {[%emt
00:00:04]} Nd7 {[%clk 00:04:31]} {[%emt 00:00:09]} 24. Ke2 {[%clk 00:02:14]}
{[%emt 00:00:08]} Ne5 {[%clk 00:04:16]} {[%emt 00:00:16]} 25. f4 {[%clk
00:01:40]} {[%emt 00:00:37]} gxf4 {[%clk 00:04:14]} {[%emt 00:00:04]} 26. exf4
{[%clk 00:01:39]} {[%emt 00:00:03]} Ng4 {[%clk 00:04:05]} {[%emt 00:00:11]} 27.
h3 {[%clk 00:00:56]} {[%emt 00:00:45]} Ngf6 {[%clk 00:04:05]} {[%emt 00:00:02]}
28. Ne3 {[%clk 00:00:57]} {[%emt 00:00:02]} Nb6 {[%clk 00:03:46]} {[%emt
00:00:22]} 29. g4 {[%clk 00:00:54]} {[%emt 00:00:05]} Ke7 {[%clk 00:03:44]}
{[%emt 00:00:04]} 30. Bf3 {[%clk 00:00:54]} {[%emt 00:00:02]} Kd6 {[%clk
00:03:43]} {[%emt 00:00:02]} 31. Kd3 {[%clk 00:00:50]} {[%emt 00:00:07]} h6
{[%clk 00:03:21]} {[%emt 00:00:24]} 32. Nc4+ {[%clk 00:00:46]} {[%emt
00:00:06]} Nxc4 {[%clk 00:03:14]} {[%emt 00:00:09]} 33. Kxc4 {[%clk 00:00:47]}
e5 {[%clk 00:03:11]} {[%emt 00:00:05]} 34. fxe5+ {[%clk 00:00:31]} {[%emt
00:00:17]} Kxe5 {[%clk 00:03:12]} 35. Kb5 {[%clk 00:00:32]} {[%emt 00:00:01]}
Kf4 {[%clk 00:03:13]} 36. Bc6 {[%clk 00:00:27]} {[%emt 00:00:07]} Kg3 {[%clk
00:03:13]} {[%emt 00:00:02]} 37. Ka6 {[%clk 00:00:28]} Kxh3 {[%clk 00:03:13]}
{[%emt 00:00:03]} 38. Kxa7 {[%clk 00:00:29]} {[%emt 00:00:01]} Kxg4 {[%clk
00:03:09]} {[%emt 00:00:02]} 39. b4 Kf4 {[%emt 00:00:06]} 40. b5 {[%clk
00:00:31]} {[%emt 00:00:01]} Ne4 {[%clk 00:03:10]} 41. Bxe4 {[%clk 00:00:27]}
{[%emt 00:00:07]} Kxe4 {[%clk 00:03:11]} 42. b6 {[%clk 00:00:28]} {[%emt
00:00:01]} 1-0